Cogmind - Beta 16 @@@ ROGUE MODE // 2026.01.26 @ 21:21:15 Player: Bity Result: Destroyed by AH-C59(g) with Salvaging Laser Performance ------------- Evolutions (0) 0 Regions Visited (3) 600 Robots Destroyed (18) 90 Value Destroyed (520) 520 Prototype IDs (20) 400 Alien Tech Used (0) 0 Bonus (228) 228 TOTAL SCORE: 1838 Bonus ------- Registered with UFD 300 Friendly Fire -72 Cogmind --------- Core Integrity 0/250 Matter 300/300 Energy 100/100 System Corruption 0% Temperature Cool (6) Movement Core (100) Ox1 Location -9/Scraptown Parts ------- > --- POWER (1) -------- Subdweller Power Source > --- PROPULSION (2) --- Subdweller Monowheel Subdweller Monowheel > --- UTILITY (2) ------ (None) > --- WEAPON (2) ------- (None) > --- INVENTORY (5) ---- Tower Shield V3-11A's Pendant Peak State ------------ > --- POWER ------------ Subdweller Power Source > --- PROPULSION ------- Improved Treads Improved Treads > --- UTILITY ---------- Light Humpback > --- WEAPON ----------- Powered Cannon > --- INVENTORY -------- Ion Engine Subdweller Power Source Subdweller Power Source Improved Treads Improved Treads Spiked Treads Spiked Treads Wheel Subdweller Monowheel Disposable Heat Sink Small Storage Unit Humpback Subdweller Optics Seismic Detector Scrap Shield Tower Shield Subdweller Laser Subdweller Machine Gun Barrage Gun Plasma Cutter Flamer Maul [Rating: 28] Favorites ----------- Power Subdweller Power Source Engine Subdweller Power Source Propulsion Improved Treads Treads Improved Treads Leg Aluminum Leg Wheel Subdweller Monowheel Utility Light Humpback Device V3-11A's Pendant Storage Light Humpback Weapon Subdweller Machine Gun Energy Gun Medium Laser Energy Cannon Powered Cannon Ballistic Gun Subdweller Machine Gun Build | -11 -10 -10 -9 ------- Run | Yrd Mat Sub Scr Slots Evolved . | . . . . Power . | . . . . Propulsion . | . . . . Utility . | . . . . Weapon . | . . . . Parts Attached 11 | 1 2 8 . Power 2 | . . 2 . Engine 2 | . . 2 . Core . | . . . . Reactor . | . . . . Propulsion 4 | . 2 2 . Treads 2 | . 2 . . Leg . | . . . . Wheel 2 | . . 2 . Hover . | . . . . Flight . | . . . . Utility 3 | 1 . 2 . Device 2 | 1 . 1 . Storage 1 | . . 1 . Processor . | . . . . Hackware . | . . . . Protection . | . . . . Artifact . | . . . . Weapon 2 | . . 2 . Energy Gun . | . . . . Energy Cannon 1 | . . 1 . Ballistic Gun 1 | . . 1 . Ballistic Cannon . | . . . . Launcher . | . . . . Special Weapon . | . . . . Impact Weapon . | . . . . Slashing Weapon . | . . . . Piercing Weapon . | . . . . Special Melee Weapon . | . . . . Unidentified Prototypes 2 | . . 2 . Parts Lost 16 | . . 15 1 Power 4 | . . 4 . Propulsion 3 | . . 3 . Utility 5 | . . 5 . Weapon 4 | . . 3 1 Highest Loss Streak 12 | . . 12 1 To Critical Strikes . | . . . . Average Backups 10 | 7 7 14 2 Power 1 | 1 1 2 . Propulsion 2 | 5 4 4 . Utility 3 | . . 4 2 Weapon 2 | 1 2 3 . Tool/Special . | . . . . Unused Backups 27 | 8 4 14 1 Power 2 | 1 . 1 . Propulsion 13 | 4 3 6 . Utility 2 | 1 . . 1 Weapon 10 | 2 1 7 . Tool/Special . | . . . . Average Slot Usage (%) 65 | . 100 67 56 Engine 13 | . 14 12 14 Treads 13 | . 26 18 . Wheel 13 | . . 7 28 Device 1 | . 14 1 . Storage 6 | . 14 8 . Energy Gun 5 | . 28 6 . Energy Cannon 3 | . . 6 . Ballistic Gun 6 | . . 3 13 Peak Build Rating 28 | 7 10 28 10 Average Rating 15 | 6 9 18 9 On Entrance 8 | 6 7 10 10 Avg Prop Armor Cover (%) 9 | . . 7 10 Naked Turns . | . . . . Heaviest Build 54 | 13 13 54 9 Greatest Support 46 | 20 46 46 20 Greatest Overweight (x) 2 | . . 1 2 Average Overweight (x) . | . . . . Largest Inventory Capacity 25 | 8 8 25 5 Average Capacity 13 | 8 8 18 5 Most Carried 25 | 8 8 25 5 Average Carried 12 | 7 7 16 4 Final Capacity 8 | 8 8 5 5 Final Carried 8 | 8 8 5 3 Class Distribution -------------------- 52% | Mutant 47% | Scavenger-Mutant Dominant Class ---------------- Mutant | -10/Materials Mutant | -10/Subcaves Scavenger-Mutant | -9/Scraptown Resources | -11 -10 -10 -9 ----------- Run | Yrd Mat Sub Scr Matter Collected 323 | 210 . 113 . Remotely . | . . . . Salvage Created 689 | 168 . 521 . Parts 51 | 15 . 36 . Haulers Intercepted . | . . . . Recyclers Shooed . | . . . . Parts Field Recycled . | . . . . Retrieved Matter . | . . . . Parts Self-Destructed 15 | . . 15 . Prevented . | . . . . Parts Restored . | . . . . Kills | -11 -10 -10 -9 ------- Run | Yrd Mat Sub Scr Combat Hostiles Destroyed 12 | . . 12 . Guns 5 | . . 5 . Cannons 6 | . . 6 . Classes Destroyed 6 | 2 . 4 . Tunneler 5 | 5 . . . Recycler 1 | 1 . . . Grunt 1 | . . 1 . Sentry 1 | . . 1 . Cobbler 1 | . . 1 . Subdweller 10 | . . 10 . Best Kill Streak 4 | 4 . 3 . Combat Bots Only 3 | . . 3 . Max Kills in Single Turn 2 | 1 . 2 . Gunslinging . | . . . . Exploded . | . . . . Melee . | . . . . Uniques/NPCs Destroyed . | . . . . Combat | -11 -10 -10 -9 -------- Run | Yrd Mat Sub Scr Hostile Shots Fired 68 | . . 63 5 Missed 17 | . . 16 1 Hits 51 | . . 47 4 Projectile 51 | . . 47 4 Critical Strikes 1 | . . 1 . Damage Taken 1137 | . . 1066 71 Core 257 | . . 247 10 Absorbed by Shields . | . . . . Core Remaining (%) 100 | 100 . . . Volleys Fired 65 | 11 . 53 1 Largest 2 | 2 . 2 1 Hottest 100 | 100 . 100 30 Shots Fired 86 | 22 . 63 1 Gun 52 | 22 . 29 1 Cannon 34 | . . 34 . Launcher . | . . . . Special . | . . . . Kinetic 10 | . . 9 1 Thermal 76 | 22 . 54 . Explosive . | . . . . Electromagnetic . | . . . . Robot Hit Streak 23 | 6 . 22 23 Robot Miss Streak 2 | 2 . 2 . Penetration Max . | . . . . Secondary Targets . | . . . . Shots Hit Robots 56 | 12 . 43 1 Core Hits 26 | 7 . 18 1 Critical Kills 1 | . . 1 . Critical Parts Destroyed . | . . . . Critical Strikes 5 | 2 . 3 . Burn 4 | 2 . 2 . Meltdown 1 | . . 1 . Melee Attacks . | . . . . Impact . | . . . . Slashing . | . . . . Piercing . | . . . . Sneak Attacks . | . . . . Combat Hostiles . | . . . . Follow-up Attacks . | . . . . Damage Inflicted 1513 | 153 . 1336 24 Guns 507 | 153 . 330 24 Cannons 1006 | . . 1006 . Explosions . | . . . . Melee . | . . . . Ramming . | . . . . Kinetic 180 | . . 156 24 Thermal 1333 | 153 . 1180 . Explosive . | . . . . Electromagnetic . | . . . . Impact . | . . . . Slashing . | . . . . Piercing . | . . . . Highest Corruption . | . . . . Average Corruption . | . . . . Corruption Purged . | . . . . Corruption Blocked . | . . . . Overload Shots . | . . . . Overflow Damage 9 | . . 9 . Projectiles 9 | . . 9 . Explosions . | . . . . Melee . | . . . . Knockbacks . | . . . . Impact . | . . . . Kinetic . | . . . . Secondary . | . . . . Self-Inflicted Damage . | . . . . Shots . | . . . . Rammed . | . . . . Targets Rammed . | . . . . Kicked . | . . . . Crushed . | . . . . Highest Temperature 195 | 195 . 9 . Average Temperature 86 | 99 . 6 . Received Heat Transfer 264 | . . 222 42 Siege Activations . | . . . . Martial Activations . | . . . . Shielding Activations . | . . . . Robots Disrupted . | . . . . Combat Hostiles . | . . . . Robots Corrupted . | . . . . Combat Hostiles . | . . . . Parts Fried . | . . . . Impact Corruptions . | . . . . Robots Melted 1 | . . 1 . Combat Hostiles 1 | . . 1 . Parts Melted 6 | 2 . 4 . Heat Transferred 1258 | 592 . 666 . Parts Sabotaged . | . . . . Parts Stolen . | . . . . Parts Stripped . | . . . . Power Chain Reactions . | . . . . Alert | -11 -10 -10 -9 ------- Run | Yrd Mat Sub Scr Maximum Alert Level . | . . . . Low Security (%) 100 | 100 100 . . Level 1 . | . . . . Level 2 . | . . . . Level 3 . | . . . . Level 4 . | . . . . Level 5 . | . . . . High Security . | . . . . Max Security . | . . . . Peak Influence 10 | 10 . . . Initial . | . . . . Average 1 | 3 . . . Influence Increases 70 | 30 . 40 . Destroy 0b10 Robot/C 40 | . . 40 . Destroy 0b10 Robot/NC 30 | 30 . . . Influence Decreases 70 | 30 . 40 . Time Decay 57 | 30 . 27 . Lost Part 13 | . . 13 . Squads Dispatched 1 | . 1 . . Investigation . | . . . . Extermination . | . . . . Reinforcement 1 | . 1 . . Assault . | . . . . Garrison . | . . . . Intercept . | . . . . Searches Triggered . | . . . . Construction Impeded . | . . . . Haulers Reinforced . | . . . . Active Scanning Responses . | . . . . Cargo Convoy Interrupts . | . . . . Stealth | -11 -10 -10 -9 --------- Run | Yrd Mat Sub Scr Distress Signals . | . . . . Communications Jammed . | . . . . Distress Signals . | . . . . Times Spotted 20 | . . 14 6 Peak Tracking Total 6 | . . 3 6 Tactical Retreats . | . . . . Traps | -11 -10 -10 -9 ------- Run | Yrd Mat Sub Scr Traps Triggered 2 | . . 2 . Indirectly . | . . . . Trap Hack Attempts . | . . . . Triggered . | . . . . Disarmed . | . . . . Reprogrammed . | . . . . Reused . | . . . . Traps Extracted . | . . . . Installed . | . . . . Triggered . | . . . . Machines | -11 -10 -10 -9 ---------- Run | Yrd Mat Sub Scr Machines Disabled 1 | . . 1 . Max in Single Turn 1 | . . 1 . Machines Repaired . | . . . . Machines Dismantled . | . . . . Machines Sabotaged . | . . . . Overloaded Fab Kills . | . . . . Hacking | -11 -10 -10 -9 --------- Run | Yrd Mat Sub Scr Machines Accessed 6 | . . 4 2 Terminals . | . . . . Fabricators . | . . . . Repair Stations . | . . . . Recycling Units . | . . . . Scanalyzers . | . . . . Garrison Access . | . . . . Total Hacks 22 | . . 16 6 Successful 22 | . . 16 6 Failed . | . . . . Catastrophic . | . . . . Database Lockouts . | . . . . Manual . | . . . . Terminals . | . . . . Fabricators . | . . . . Repair Stations . | . . . . Recycling Units . | . . . . Scanalyzers . | . . . . Garrison Access . | . . . . Terminal Hacks 22 | . . 16 6 Record 13 | . . 13 . Robot Analysis 5 | . . . 5 Open Door 1 | . . 1 . Proto ID Catalog 2 | . . 1 1 Release Object 1 | . . 1 . Fabricator Hacks . | . . . . Repair Station Hacks . | . . . . Recycling Unit Hacks . | . . . . Scanalyzer . | . . . . Garrison Access Hacks . | . . . . Unauthorized Hacks . | . . . . Terminals . | . . . . Fabricators . | . . . . Repair Stations . | . . . . Recycling Units . | . . . . Scanalyzers . | . . . . Garrison Access . | . . . . Data Cores Recovered . | . . . . Used . | . . . . Hacking Detections . | . . . . Full Trace Events . | . . . . Feedback Events . | . . . . Feedback Blocked . | . . . . Robot Schematics Acquired . | . . . . Robots Built . | . . . . Authchips . | . . . . Time . | . . . . Total Robot Build Rating . | . . . . Part Schematics Acquired . | . . . . Parts Built . | . . . . Authchips . | . . . . Time . | . . . . Total Part Build Rating . | . . . . Part Studies Acquired . | . . . . Parts Repaired . | . . . . Time . | . . . . Parts Recycled . | . . . . Recycled Matter . | . . . . Retrieved Matter . | . . . . Retrieved Components . | . . . . Parts Scanalyzed . | . . . . Part Schematics Acquired . | . . . . Parts Damaged . | . . . . Bothacking | -11 -10 -10 -9 ------------ Run | Yrd Mat Sub Scr Used RIF Installer . | . . . . Robots Hacked . | . . . . Non-combat . | . . . . Combat . | . . . . Robot Hacks Applied . | . . . . Relay Couplers Released . | . . . . Fabnet Peak Effective % . | . . . . Robots Rewired . | . . . . Allies Hacked . | . . . . Hacks Repelled . | . . . . Allies | -11 -10 -10 -9 -------- Run | Yrd Mat Sub Scr Total Allies 2 | . . 2 . Largest Group 2 | . . 2 2 Highest-Rated Group 38 | . . 38 38 Highest-Rated Ally 19 | . . 19 19 Total Orders . | . . . . Ally Attacks 7 | . . 3 4 Total Damage 92 | . . 19 73 Kills . | . . . . Allies Corrupted . | . . . . Allies Melted . | . . . . Intel | -11 -10 -10 -9 ------- Run | Yrd Mat Sub Scr Active Infowar (turns) 207 | 12 165 30 . Seismic 207 | 12 165 30 . Robot Analysis Total 5 | . . . 5 Derelict Logs Recovered 1 | . . 1 . Drone Launches . | . . . . Drone Recoveries . | . . . . Exploration | -11 -10 -10 -9 ------------- Run | Yrd Mat Sub Scr Turns Passed 4509 | 89 165 2895 1360 Spaces Moved 2731 | 37 99 1474 1121 Core 295 | . . . 295 Treads 913 | . 95 818 . Legs 41 | 37 4 . . Wheels 1482 | . . 656 826 Hover . | . . . . Flight . | . . . . Fastest Speed 110 | 120 120 110 110 Average Speed 152 | 120 158 178 120 Slowest Speed 240 | 120 160 240 150 Overloaded Moves . | . . . . Propulsion Burnouts . | . . . . Robots Hopped . | . . . . Potential Cave-ins . | . . . . Cave-ins Triggered . | . . . . Exploration Rate (%) 46 | 2 32 70 83 Regions Visited 3 Branch Regions 2 Pre-discovered Areas 2 | . . 2 . Known Exits Taken . | . . . . Unknown Exits Taken 3 | 1 1 1 . Scrap Searched 5 | . . 1 4 Spaces Dug . | . . . . Terrain Destroyed 4 | . . 4 . Melee . | . . . . Projectile 4 | . . 4 . AOE . | . . . . Terrain Rammed . | . . . . Walls Destroyed . | . . . . Machines Disabled . | . . . . Actions | -11 -10 -10 -9 --------- Run | Yrd Mat Sub Scr Total 2991 | 62 108 1692 1129 Wait 138 | 8 . 123 7 Move 2728 | 36 98 1473 1121 Hop . | . . . . Pick Up 32 | 4 4 24 . Fast Attach 4 | 1 . 3 . Attach 3 | . . 3 . Detach 2 | . . 2 . Swap 4 | . 2 2 . Drop 15 | 2 4 9 . Fire 65 | 11 . 53 1 Melee . | . . . . Ram . | . . . . Kick . | . . . . Crush . | . . . . Escape Stasis . | . . . . Rewire . | . . . . Trap . | . . . . Miscellaneous . | . . . . Route ------- -11/Scrapyard -10/Materials (discovered 4 exits: [*Mat] / [*Min x2] / *Sub) -10/Subcaves (discovered 4 exits: [*Mat x2] / *Scr x2) -9/Scraptown History --------- Turn | Location | Event 16 | -11/Scrapyard | Discovered new exit (range 3) 90 | -11/Scrapyard | Entered Materials 91 | -10/Materials | Met a group of wandering Federalists 131 | -10/Materials | Discovered new exit (range 12) 171 | -10/Materials | Discovered new exit (range 9) 229 | -10/Materials | Discovered new exit (range 10) 250 | -10/Materials | Discovered new exit (range 5) 255 | -10/Materials | Entered Subcaves 256 | -10/Subcaves | Continued accompanying wandering Federalists (5) 256 | -10/Subcaves | Approached by a straggling Scientist 257 | -10/Subcaves | Shifting Twisted Machinery released Lgt. Humpback 263 | -10/Subcaves | Learned Materials security intel 285 | -10/Subcaves | Learned location of Zion (-7) 285 | -10/Subcaves | Met a Zionite searching for "candidates" 294 | -10/Subcaves | Shifting Twisted Machinery released Mak. Light Armor Plating 307 | -10/Subcaves | Build established: Mutant 535 | -10/Subcaves | A Subdweller sparked back to life 535 | -10/Subcaves | A Subdweller sparked back to life 582 | -10/Subcaves | Found Prototype Energy Cannon 871 | -10/Subcaves | Identified Powered Cannon 872 | -10/Subcaves | Attached Powered Cannon, gained temporary slot: Power 1318 | -10/Subcaves | Discovered new exit (range 9) 1615 | -10/Subcaves | Visited 4L-MR0's lab 1658 | -10/Subcaves | Found Tower Shield 1786 | -10/Subcaves | A swath of the cavern ceiling suddenly collapsed 1848 | -10/Subcaves | Discovered new exit (range 12) 1891 | -10/Subcaves | Scientist uncovered a shortcut to Scraptown 1947 | -10/Subcaves | Visited Clippyterm 1954 | -10/Subcaves | Learned location of Deep Caves (-7) 2159 | -10/Subcaves | Ambushed by Subdwellers from Twisted Machinery 2184 | -10/Subcaves | Core integrity fell below 50% 2276 | -10/Subcaves | Lost 12 parts (3p2n5u2w) 2290 | -10/Subcaves | Visited triangular shrine 2300 | -10/Subcaves | Found Prototype Device 2331 | -10/Subcaves | Ambushed by Subdwellers from Twisted Machinery 2356 | -10/Subcaves | Core integrity fell below 20% 2496 | -10/Subcaves | Identified V3-11A's Pendant 2501 | -10/Subcaves | Befriended Subdweller 2626 | -10/Subcaves | Befriended Subdweller 2669 | -10/Subcaves | Build established: Scavenger-Mutant 3150 | -10/Subcaves | Entered Scraptown 3150 | -9/Scraptown | Accompanied by 2 allies 3269 | -9/Scraptown | Visited UFD Registry 3269 | -9/Scraptown | Registered with UFD as "Gaussparser" 3286 | -9/Scraptown | Visited TADAMA 3306 | -9/Scraptown | Visited Comm Corps 3356 | -9/Scraptown | Visited Red Mages 3366 | -9/Scraptown | Visited The Evicted 3410 | -9/Scraptown | Visited Awakened 3542 | -9/Scraptown | Heard Great Nut preacher, LISTEN AND RECITE! 3718 | -9/Scraptown | Visited Derelict Rescue Squad 3737 | -9/Scraptown | Visited Curators Association 3777 | -9/Scraptown | Visited Research Penetration Think Tank 3802 | -9/Scraptown | Visited Chapter 10 3858 | -9/Scraptown | Visited Scrapoid Research Area 3879 | -9/Scraptown | Visited DA-N13 Charitable Foundation 3890 | -9/Scraptown | Found DCF Scrap (29 items) 3908 | -9/Scraptown | Visited Observation Area 3947 | -9/Scraptown | Visited Science Guys 3983 | -9/Scraptown | Visited Supply Room 4014 | -9/Scraptown | Visited Analyses Database 4307 | -9/Scraptown | Delivered Scrap Shield to a Scientist 4503 | -9/Scraptown | Attacked by Scraptown defenders 4510 | -9/Scraptown | Destroyed by AH-C59(g) with Salvaging Laser Last Messages --------------- K4-9ZK(c): A Scrap Shield! Thank you so much! I'll repay you with a sample of my new tech, promise. K4-9ZK(c): These things take time. Don't worry, I'll have it delivered to you later on, maybe in the caves. It'll be worth the wait. 04356_ Multiple signs read "I'm always busy, go away." 04503_ ANNOUNCEMENT: Intruder alert! Defend Scraptown! 04504_ Triborg activates siege mode. 04504_ Siege Slug penetrates 23-BNC(R). 04504_ 23-BNC(R) knocked back. 04506_ Siege Slug penetrates E2-PWX(R). 04506_ E2-PWX(R) suffers critical hit (Blast). 04506_ Sub. Machine Gun destroyed. 04508_ Siege Slug penetrates E2-PWX(R). 04508_ E2-PWX(R) knocked back. 04509_ Machine disabled. 04510_ 3K-Y8U(p): "0b10-spawn!" Map ----- +----------------------------------------------------+ | ## ??????????? "#??????????? ???#" | | ##""""?????????????? "?????????????# #????#### | | ### ################## ####???????##### ######### | | #???????#"""" """"""""" | | #???????#" | | #???????#" | | #???????#" | | #???????#" | | ################# #???#####" | | #???????????????# #???#"""" """""""" | | #??#######??????# #???#"""" """""""" | | ## #?????# #???#"""" ""###### | | """??????????# #???#"""" ""#???? | | # "" "???????# #???#"""" ""#??? | | # " ????????# ###?#"""" ""#???"" | | #?" ?????????# ""#"#"""" ""#????? | | #?? ??????????# j""""#"""" ""# "?? | | #??? ???????????# ""#?#####" "" ? | | #???????????????# ###?????#" "" ? | | #???????????????# #########" ""# "? | | #???????????????# ""#???" | | #???????????????# ""#?? "" | | #???????????????# g ""#??? | | #???????????????# E ""#??? | | ################# TT ""###### | | TT@ R """""""" | | % % """""""" | | % | | R | | | | #""""# | | #????#" | | #????#"""""" """"""" | | ##### ##############g### ####????####### ####### | | #???# p ## #??????????# ## | | "#???# ## #??????????# ## | | ##### "#???# ## #??????????#"" """##" | | """#" "#???# ## #??????????#" ""## | | #" "#???# """" ## #??????????#" X " ""## | | "" # "#???# """"" ## #??????????#""""""""## | | ##+## "#???# """"" ## #??????????############ | | "#???# ## #?????????????????????? | | """"""""#???#???? ## #?????????????????????? | | #########????????####### #?????????????????????? | | ???????????????????????# #?????????????????????? | | ??????????????????###### #?????????????????????? | | ????????????????"""""""" #??????####?????####### | | ???????????????""" """"" #??????? ???#"""##" | | ???????##????"""" " "" #????????""""" ## ""##| | | ??????? ? #????????""""" | +----------------------------------------------------+ Best States ------------- Heat Dissipation 25 Energy Generation 15 Energy Capacity 250 Matter Stores 300 Matter Capacity 300 Sight Range 16 Terrain Scan Density 10 Evasion (%) 46 Recoil Reduction 2 Item Schematics ----------------- None Robot Schematics ------------------ None Fabricated ------------ Nothing Repaired ---------- Nothing Studied --------- None Alien Tech Used ----------------- None Achievements -------------- SUBSUB Challenges ------------ None Game ------ Seed AngularImprinterStatue Manual? 0 Play Time 00:23:42 Cumulative 82.5 hours Start 2026.01.26 @ 20:56:52 End 2026.01.26 @ 21:21:15 Sessions 1 Manual Loads 0 Difficulty Rogue Special Mode None Game No. 97 Rogue 97 Adventurer 0 Explorer 0 Win Type - Total 2 Types 2/0/0/0/0/0/0/0/0/0 Lore% 53 Gallery% 51 Achievement% 41 Wizard Run 0 Options --------- Layout 2 ASCII 0 Keyboard 1 Movement Numpad Keybinds 0 Fullscreen 2 Font 24/Smallcaps Map View 50x44 Zoom Use 0% Tactical HUD 1 Map Filters NONE Filters NONE Steam 1 RUN: 5c7b49fb-759e-45f2-80e5-eef8d422e47a